[Event "Fagernes GM Open Autumn 2024"]
[Site "Fagernes"]
[Date "2024.10.09"]
[Round "4.10"]
[White "Aizenberg, Benny"]
[Black "Carlsson, Ludvig"]
[Result "1-0"]
[ECO "C42"]
[WhiteElo "2423"]
[BlackElo "2334"]
[Annotator "TA"]
[PlyCount "147"]
[EventDate "2024.10.03"]
[EventType "swiss"]
[EventCountry "NOR"]
[SourceTitle "playchess.com"]
[Source "ChessBase"]
[SourceQuality "1"]
[TimeControl "40/6000:2400+30"]

{[%evp 38,146,69,60,68,68,70,58,68,66,73,65,70,65,72,61,68,67,72,61,75,54,61,64,79,78,79,79,77,75,87,87,79,79,87,79,79,78,78,67,68,57,96,83,90,90,104,101,101,94,131,121,141,141,141,130,141,116,115,115,115,114,100,99,100,88,86,85,96,85,87,102,102,102,102,85,85,85,85,52,210,207,384,356,29976,29977,29979,29980,29979,29980,29982,29982,29982,29983,29983,29984,29984,29985,29985,29986,29986,29987,29987,29988,29988,29989,29990,29991,29996,29997,29999]} 1. e4 {[%emt 0:00:00]} e5 {[%emt 0:00:00]} 2. Nf3 {[%emt 0:00:00]} Nf6 {[%emt 0:00:00]} 3. Nxe5 {[%emt 0:00:00]} Nxe4 {[%emt 0:00:00]} 4. Qe2 {[%emt 0:00:00]} Qe7 {[%emt 0:00:00]} 5. Qxe4 {[%emt 0:00:00]} d6 {[%emt 0:00:00]} 6. d4 {[%emt 0:00:00]} dxe5 {[%emt 0:00:00]} 7. dxe5 {[%emt 0:00:00]} Nc6 {[%emt 0:00:00] C42: Petroff Defence: 3 Nxe5 and unusual White 3rd moves.} 8. Nc3 {[%emt 0:00:00]} Qxe5 {[%emt 0:00:00]} 9. Qxe5+ {[%emt 0:00:00]} Nxe5 {[%emt 0:00:00]} 10. Bf4 {[%emt 0:00:00]} f6 {[%emt 0:00:00]} 11. O-O-O {[%emt 0:00:00]} Bd7 {[%emt 0:00:00]} 12. Nb5 {[%emt 0:00:00]} Bxb5 {[%emt 0:00:00]} 13. Bxb5+ {[%emt 0:00:00]} c6 {[%emt 0:00:00]} 14. Ba4 {[%emt 0:00:15]} Bc5 {[%emt 0:00:00]} 15. f3 $146 {[%emt 0:04:48]} ({Predecessor:} 15. Rhe1 Rd8 16. Bxe5 Rxd1+ 17. Kxd1 fxe5 18. Rxe5+ Be7 19. c3 Rf8 20. Ke2 Kd7 21. Bc2 {½-½ Buchnicek,P (2352)-Volkmann,F (2416) AUT-chT 1213 2012 (11.6)}) 15... Rd8 {[%emt 0:00:00]} 16. Rde1 {[%emt 0:10:38]} O-O {[%emt 0:00:00]} 17. Bxe5 {[%emt 0:04:12]} fxe5 {[%emt 0:00:00]} 18. Bb3+ {[%emt 0:00:00]} Kh8 {[%emt 0:00:00]} 19. Rxe5 {[%emt 0:00:00]} Bd6 {[%emt 0:00:00]} 20. Ree1 {[%emt 0:06:37]} g6 {[%emt 0:00:00]} 21. Bc4 {[%emt 0:09:20]} Kg7 {[%emt 0:01:20]} 22. Bd3 {[%emt 0:00:00]} Rfe8 {[%emt 0:01:48]} 23. g3 {[%emt 0:05:43]} Bc5 {[%emt 0:05:18]} 24. Kd2 {[%emt 0:05:31]} a5 {[%emt 0:01:37]} 25. a4 {[%emt 0:04:04]} Bf2 {[%emt 0:03:47]} 26. Re2 {[%emt 0:06:29]} Rxe2+ {[%emt 0:01:53]} 27. Kxe2 {[%emt 0:00:00]} Bc5 {[%emt 0:00:00]} 28. Rd1 {[%emt 0:04:38]} Kf6 {[%emt 0:00:48]} 29. Kf1 {[%emt 0:00:53]} Rd4 {[%emt 0:00:21]} 30. Ra1 {[%emt 0:00:04]} Bf8 {[%emt 0:06:38]} 31. Kg2 {[%emt 0:01:23]} Bc5 {[%emt 0:00:56]} 32. b3 {[%emt 0:01:40]} Bb4 {[%emt 0:03:09]} 33. Rf1 {[%emt 0:00:00]} Bc3 {[%emt 0:03:29]} 34. f4 {[%emt 0:03:32]} Rd7 {[%emt 0:02:46]} 35. h4 {[%emt 0:04:51]} h6 {[%emt 0:07:26]} 36. Rf3 {[%emt 0:03:18]} Bb4 {[%emt 0:00:24]} 37. g4 {[%emt 0:00:43]} Kg7 {[%emt 0:01:31]} 38. f5 {[%emt 0:07:03]} gxf5 {[%emt 0:00:00]} 39. Rxf5 {[%emt 0:00:00]} Rf7 {[%emt 0:01:56]} 40. Re5 {[%emt 0:00:00]} Re7 {[%emt 0:00:00]} 41. Rh5 {[%emt 0:41:46]} Be1 {[%emt 0:07:14]} 42. g5 {[%emt 0:05:02]} Re6 {[%emt 0:41:28]} 43. Kf3 {[%emt 0:01:05]} b6 {[%emt 0:03:57]} 44. Kf4 {[%emt 0:01:02]} Bd2+ {[%emt 0:06:20]} 45. Kf5 {[%emt 0:06:32]} Rg6 {[%emt 0:07:56]} 46. Be4 {[%emt 0:00:00]} Bc1 {[%emt 0:00:00]} 47. Ke5 {[%emt 0:00:00]} Bb2+ {[%emt 0:00:00] [#]} 48. Kf4 $1 {[%emt 0:00:00]} Rd6 {[%emt 0:00:00]} 49. Bf5 {[%emt 0:00:00]} (49. gxh6+ {simplifies} Rxh6 50. Rxh6 Kxh6 51. Kg3) 49... Bc1+ {[%emt 0:00:00]} 50. Ke5 {[%emt 0:00:00]} Rd5+ {[%emt 0:00:00]} 51. Ke6 {[%emt 0:00:00]} Bf4 {[%emt 0:00:00]} 52. Bd3 {[%emt 0:00:00]} ({Much worse is} 52. Rxh6 $6 Re5+ 53. Kd7 Rxf5 $11) 52... hxg5 {[%emt 0:00:00]} 53. hxg5 {[%emt 0:00:00]} Re5+ {[%emt 0:00:00]} 54. Kd7 {[%emt 0:00:00]} Rxg5 {[%emt 0:00:00]} 55. Rh7+ {[%emt 0:00:00]} Kf8 {[%emt 0:00:00]} 56. Kxc6 {[%emt 0:00:00]} Be3 {[%emt 0:00:00]} 57. Rb7 {[%emt 0:00:00]} Re5 {[%emt 0:00:00]} 58. Kd6 {[%emt 0:00:00]} Bf4 $2 {[%emt 0:00:00]} ({Black should try} 58... Re7 $14 59. Rxe7 Bc5+ 60. Kd7 Bxe7) 59. Rxb6 $18 {[%emt 0:00:00]} Rb5+ $2 {[%emt 0:00:00]} (59... Bg3 60. Kd7 Re7+ 61. Kc6 Re3) 60. Kc6 $18 {[%emt 0:00:00]} Rxb6+ $2 {[%emt 0:00:00]} (60... Re5 $18 61. Rb5 Re6+ 62. Kb7 Re7+ 63. Kc6 Re6+ 64. Kb7 Re7+ 65. Kb6 Bd2) 61. Kxb6 {[%emt 0:00:00]} Bd2 {[%emt 0:00:00] [#]} 62. c4 $1 {[%emt 0:00:00]} Ke7 {[%emt 0:00:00]} 63. c5 {[%emt 0:00:00]} Kd8 {[%emt 0:00:00]} 64. c6 {[%emt 0:00:00]} Bf4 {[%emt 0:00:00]} 65. Kxa5 {[%emt 0:00:00]} Kc7 {[%emt 0:00:00]} 66. Kb5 {[%emt 0:00:00]} Bd2 {[%emt 0:00:00]} 67. Be4 {[%emt 0:00:00]} Be1 {[%emt 0:00:00]} 68. b4 {[%emt 0:00:00]} Bd2 {[%emt 0:00:00]} 69. a5 {[%emt 0:00:00]} Be1 {[%emt 0:00:00]} 70. Ka4 {[%emt 0:00:00]} Kb8 {[%emt 0:00:00]} 71. b5 {[%emt 0:00:00]} Bxa5 {[%emt 0:00:00]} 72. Kxa5 {[%emt 0:00:00]} Ka7 {[%emt 0:00:00]} 73. b6+ {[%emt 0:00:00]} Ka8 {[%emt 0:00:03]} 74. c7# {[%emt 0:00:00]} 1-0

[Event "Fagernes GM Open Autumn 2024"]
[Site "Fagernes"]
[Date "2024.10.09"]
[Round "4.11"]
[White "Moksh Amit Doshi"]
[Black "Oye-Stromberg, Alexander"]
[Result "1-0"]
[ECO "A17"]
[WhiteElo "2377"]
[BlackElo "2248"]
[Annotator "TA"]
[PlyCount "59"]
[EventDate "2024.10.03"]
[EventType "swiss"]
[EventCountry "NOR"]
[SourceTitle "playchess.com"]
[Source "ChessBase"]
[SourceQuality "1"]
[TimeControl "40/6000:2400+30"]

{[%evp 9,59,5,-6,0,17,0,0,2,1,0,16,18,89,32,145,133,130,131,494,64,189,61,153,131,295,281,266,277,319,250,275,240,304,302,491,427,420,438,406,281,472,468,683,648,692,712,726,701,721,702,657,566]} 1. Nf3 {[%emt 0:01:01]} d5 {[%emt 0:00:00]} 2. e3 {[%emt 0:00:00]} Nf6 {[%emt 0:00:00]} 3. c4 {[%emt 0:00:00]} e6 {[%emt 0:00:51]} 4. Nc3 {[%emt 0:00:00]} b6 {[%emt 0:00:33]} 5. cxd5 {[%emt 0:00:00]} exd5 {[%emt 0:00:00]} 6. g3 {[%emt 0:00:00]} Bb7 {[%emt 0:00:27][%cal Od5d4]} 7. Bg2 {[%emt 0:00:00]} Nbd7 {[%emt 0:06:21]} 8. O-O {[%emt 0:00:00] The position is equal.} Bd6 {[%emt 0:00:31]} 9. b3 {[%emt 0:02:12]} a6 {[%emt 0:00:53]} 10. Bb2 {[%emt 0:00:49]} Qe7 {[%emt 0:02:11]} (10... O-O $11 {keeps the balance.}) 11. Rc1 {[%emt 0:02:41]} (11. Nh4 $1 $16 {[%cal Rh4f5]}) 11... O-O-O {[%emt 0:05:44]} (11... O-O $14) 12. Nd4 $16 {[%emt 0:13:42]} g6 {[%emt 0:02:21] Prevents Nf5.} 13. Qc2 {[%emt 0:03:08][%cal Ob3b4]} Kb8 $2 {[%emt 0:04:04][%mdl 8192] [#]} (13... Rhe8 $16 14. Na4 h6) 14. b4 $2 {[%emt 0:04:51]} (14. Nxd5 $1 $18 {[%mdl 512]} Nxd5 (14... Bxd5 $2 15. Nc6+ Kb7 16. Nxe7 $18) 15. Nc6+ Bxc6 16. Qxc6) 14... c6 {[%emt 0:13:27] [#]} (14... Bxb4 $14 15. Nxd5 Nxd5 16. Bxd5 Bxd5 17. Qxc7+ Ka8) 15. a3 {[%emt 0:08:08]} ({White should try} 15. b5 $1 $18 {[%cal Rb5c6]} axb5 16. e4 dxe4 17. Nxe4 Nxe4 18. Nxc6+ (18. Bxe4 Ne5 $16) 18... Bxc6 19. Qxc6) 15... h5 {[%emt 0:01:27]} (15... Rc8 $14) 16. e4 {[%emt 0:05:01] White is more active.} c5 $2 {[%emt 0:02:37]} (16... Be5 $16 {keeps fighting.}) 17. bxc5 $18 {[%emt 0:00:15]} (17. Nxd5 Nxd5 18. bxc5 bxc5 $11) 17... bxc5 {[%emt 0:00:18]} 18. Nb3 {[%emt 0:00:59]} (18. Nxd5 Nxd5 19. Nb3 N5b6 $11) 18... d4 {[%emt 0:04:35]} 19. Nd5 {[%emt 0:02:00]} Nxd5 {[%emt 0:00:14]} 20. exd5 {[%emt 0:00:00] And now Na5 would win.} h4 {[%emt 0:07:47]} 21. Na5 {[%emt 0:03:33]} Nb6 $2 {[%emt 0:03:38]} (21... Ka8 {might work better.} 22. Rb1 Rb8) 22. Qb3 {[%emt 0:01:17]} Ka7 {[%emt 0:00:21]} 23. Rb1 {[%emt 0:10:16]} Qc7 {[%emt 0:01:22]} 24. Rfc1 {[%emt 0:00:00] Strongly threatening Bxd4.} hxg3 $2 {[%emt 0:00:00]} (24... h3 {is a better defense.}) 25. hxg3 {[%emt 0:00:00] aiming for Bxd4. White is clearly winning.} ({Less strong is} 25. fxg3 Rh5 (25... Bxd5 $2 26. Bxd5 Rh5 27. Nc6+ Kb7 28. Nxd8+ $18) 26. Nxb7 Kxb7 27. Bxd4 Ka7 $18) 25... Rh5 {[%emt 0:00:47]} (25... Ba8 $142 26. Bxd4 Rhe8 27. Bxc5 Bxc5) 26. Nxb7 {[%emt 0:06:39]} Qxb7 {[%emt 0:00:00] [#]} 27. Bxd4 $1 {[%emt 0:03:02][%mdl 512]} cxd4 {[%emt 0:08:19]} 28. Rc6 {[%emt 0:00:00]} Bc7 {[%emt 0:01:36] [#]} 29. d6 $1 {[%emt 0:00:06][%cal Bd5d6,Bd6c7][%mdl 544]} Rdh8 {[%emt 0:01:20]} 30. dxc7 {[%emt 0:00:00] Weighted Error Value: White=0.69/Black=0.97.  Loses game:     	---       	Black=2      Missed win:     	White=1     	---        Mistake:       	White=2     	Black=7      Inaccurate:     	White=1     	---        OK:         	White=9     	Black=6      Best:        	White=1     	---} (30. Rxc7 $2 {is a self mate.} Rh1+ 31. Bxh1 Rxh1#) 1-0

[Event "Fagernes GM Open Autumn 2024"]
[Site "Fagernes"]
[Date "2024.10.09"]
[Round "4.12"]
[White "Sorensen, Hampus"]
[Black "Krivenko, Dion"]
[Result "1/2-1/2"]
[ECO "A49"]
[WhiteElo "2423"]
[BlackElo "2244"]
[Annotator "TA"]
[PlyCount "89"]
[EventDate "2024.10.03"]
[EventType "swiss"]
[EventCountry "NOR"]
[SourceTitle "playchess.com"]
[Source "ChessBase"]
[SourceQuality "1"]
[TimeControl "40/6000:2400+30"]

{[%evp 12,89,17,24,19,0,5,23,15,8,28,-35,-41,-31,-24,-38,0,0,0,0,0,0,20,15,20,21,15,5,31,0,0,0,0,0,0,0,10,8,8,6,7,4,5,7,6,5,33,0,59,15,47,46,68,54,62,43,86,56,74,39,40,8,8,8,8,8,8,8,7,8,8,8,8,8,8,8,8,8,8,8]} 1. Nf3 {[%emt 0:00:00]} Nf6 {[%emt 0:02:28]} 2. g3 {[%emt 0:00:00]} g6 {[%emt 0:00:00]} 3. b3 {[%emt 0:00:00]} Bg7 {[%emt 0:00:00]} 4. Bb2 {[%emt 0:00:00]} O-O {[%emt 0:00:00]} 5. Bg2 {[%emt 0:00:00]} d6 {[%emt 0:00:00][%cal Bd7d6,Bd6d5,Bd5c4][%mdl 32]} 6. d4 {[%emt 0:00:00]} a5 {[%emt 0:00:15][%cal Ba7a5,Ba5a4][%mdl 32]} 7. O-O {[%emt 0:00:01]} a4 {[%emt 0:01:41]} 8. b4 {[%emt 0:00:00]} d5 {[%emt 0:06:25] [#]} 9. c4 $1 {[%emt 0:00:21]} dxc4 {[%emt 0:03:36] White has an edge.} 10. Ne5 {[%emt 0:00:39]} Nd5 {[%emt 0:06:26][%cal Bf6d5,Bd5b6,Bb6d7][%mdl 32]} 11. a3 {[%emt 0:00:51]} (11. Nxc4 $11 Nxb4 12. Qd2) 11... b5 $15 {[%emt 0:07:15]} 12. e4 {[%emt 0:00:46]} Nb6 {[%emt 0:03:30]} 13. Nc3 {[%emt 0:00:46]} Bxe5 {[%emt 0:10:42]} 14. dxe5 {[%emt 0:00:42]} Qxd1 {[%emt 0:00:00]} 15. Raxd1 {[%emt 0:05:13][%cal Ba1d1,Bd1d5,Bd5c5][%mdl 32]} c6 {[%emt 0:00:00]} 16. Bc1 {[%emt 0:15:33]} Na6 {[%emt 0:16:40] Black is weak on the dark squares} 17. Be3 {[%emt 0:07:52]} Nd7 {[%emt 0:03:24]} 18. f4 {[%emt 0:00:00][%cal Oe5e6]} c5 {[%emt 0:00:07]} 19. bxc5 {[%emt 0:08:22]} Ndxc5 {[%emt 0:00:22]} 20. Rd5 {[%emt 0:00:05]} b4 $1 {[%emt 0:05:18]} 21. Bxc5 {[%emt 0:27:34]} Nxc5 {[%emt 0:00:14]} 22. Rxc5 {[%emt 0:00:00]} bxc3 {[%emt 0:00:00]} 23. Rc1 $1 {[%emt 0:00:00]} Be6 {[%emt 0:03:40]} 24. f5 $1 {[%emt 0:00:00]} Rfc8 $132 {[%emt 0:09:46][%mdl 2048] Black puts up resistance} 25. Rxc8+ {[%emt 0:04:27]} Bxc8 {[%emt 0:00:00]} 26. Rxc3 $11 {[%emt 0:00:00][%mdl 4096] Endgame. KRB-KRB} Ba6 {[%emt 0:01:22]} 27. Kf2 {[%emt 0:00:00]} Rb8 {[%emt 0:00:50]} 28. Ke3 {[%emt 0:00:00]} Kg7 {[%emt 0:07:46]} 29. Bf3 {[%emt 0:06:19]} Rb2 {[%emt 0:01:56]} ({Black should try} 29... Rb3 $11 30. Kd4 Rb2) 30. h3 {[%emt 0:02:34][%cal Bh2h3,Bh3h4][%mdl 32]} Kh6 {[%emt 0:00:41]} 31. Bd1 {[%emt 0:05:35]} gxf5 {[%emt 0:00:55]} 32. exf5 {[%emt 0:00:00]} Kg5 {[%emt 0:00:00]} 33. Bc2 {[%emt 0:00:12]} h5 {[%emt 0:01:08]} 34. Kd4 {[%emt 0:00:11]} (34. Bxa4 Kxf5 35. Kd4 Rd2+ 36. Kc5 Kxe5 37. Re3+ Kf6 $11) 34... Rb8 {[%emt 0:00:31]} 35. h4+ {[%emt 0:01:53]} (35. Bxa4 $6 Rd8+ 36. Kc5 Kxf5 $11) 35... Kg4 {[%emt 0:00:19]} 36. f6 {[%emt 0:00:00]} exf6 {[%emt 0:00:39] Strongly threatening ...Rd8+. The position is equal.} 37. exf6 {[%emt 0:00:00]} (37. Bxa4 Rd8+ 38. Kc5 fxe5 $17) 37... Rd8+ {[%emt 0:01:14]} 38. Kc5 {[%emt 0:00:00][%cal Oc5b4]} Rd3 {[%emt 0:00:00]} 39. Kb4 {[%emt 0:06:27]} Rxc3 {[%emt 0:00:00]} 40. Kxc3 {[%emt 0:00:00][%cal Oc2g6] Bg6! is the strong threat.} Kxg3 {[%emt 0:00:00] [#] KB-KB} 41. Bg6 $1 {[%emt 0:40:10]} Kxh4 {[%emt 0:40:42] And now ...Kg5 would win.} (41... fxg6 $2 {too greedy.} 42. f7 Bc8 43. f8=Q $18 (43. f8=R $2 Bf5 $19)) 42. Bxf7 {[%emt 0:00:04]} Kg5 $1 {[%emt 0:00:15] [#] Threatens to win with ...h4.} 43. Bxh5 {[%emt 0:00:04]} Kxf6 {[%emt 0:00:20]} 44. Bd1 {[%emt 0:00:24]} Ke5 {[%emt 0:00:00]} 45. Bxa4 {[%emt 0:00:00] Weighted Error Value: White=0.12 (very precise) /Black=0.10 (very precise) .  Mistake:       	White=1     	Black=1      Inaccurate:     	White=6     	Black=5      OK:         	White=13    	Black=12     Best:        	White=2     	Black=6      Strong:       	White=2     	Black=2      Brilliant:      	White=1     	---} 1/2-1/2

[Event "Fagernes GM Open Autumn 2024"]
[Site "Fagernes"]
[Date "2024.10.09"]
[Round "4.13"]
[White "Fiskaaen, Martin Holten"]
[Black "Blomqvist, Erik"]
[Result "1/2-1/2"]
[ECO "E09"]
[WhiteElo "2259"]
[BlackElo "2483"]
[Annotator "TA"]
[PlyCount "92"]
[EventDate "2024.10.03"]
[EventType "swiss"]
[EventCountry "NOR"]
[SourceTitle "playchess.com"]
[Source "ChessBase"]
[SourceQuality "1"]
[TimeControl "40/6000:2400+30"]

{[%evp 24,92,25,32,33,31,37,31,28,20,29,20,17,25,18,18,27,20,24,29,27,27,24,32,33,0,0,0,0,0,0,0,0,0,0,0,0,0,0,0,0,0,0,0,0,-32,-24,-29,-12,-8,-8,-8,-8,-8,-8,-31,-20,-64,-12,-12,-12,-12,-12,-29,-33,-29,-30,-13,0,-18,0]} 1. d4 {[%emt 0:00:00]} Nf6 {[%emt 0:00:00]} 2. c4 {[%emt 0:00:00]} e6 {[%emt 0:00:00]} 3. Nf3 {[%emt 0:00:00]} d5 {[%emt 0:00:00]} 4. g3 {[%emt 0:00:00]} Bb4+ {[%emt 0:00:00]} 5. Bd2 {[%emt 0:00:00]} Be7 {[%emt 0:00:00]} 6. Bg2 {[%emt 0:00:00]} c6 {[%emt 0:00:00]} 7. Qc2 {[%emt 0:00:00]} Nbd7 {[%emt 0:00:00]} 8. Bf4 {[%emt 0:02:36]} O-O {[%emt 0:11:33]} 9. O-O {[%emt 0:00:01]} b6 {[%emt 0:00:00]} 10. Nbd2 {[%emt 0:02:50]} Bb7 {[%emt 0:07:17]} 11. e4 {[%emt 0:02:01]} dxe4 {[%emt 0:07:06]} 12. Nxe4 {[%emt 0:00:21]} Nxe4 {[%emt 0:04:38]} 13. Qxe4 {[%emt 0:00:22]} Nf6 {[%emt 0:00:00]} 14. Qe2 {[%emt 0:00:42]} c5 {[%emt 0:01:01]} 15. Rad1 {[%emt 0:03:55]} cxd4 {[%emt 0:00:46] White is slightly better.} 16. Rxd4 {[%emt 0:02:20]} Qc8 {[%emt 0:02:21]} (16... Bxf3 {simplifies} 17. Rxd8 Bxe2 18. Rxa8 Bxf1 19. Kxf1 Rxa8 20. Bxa8 Kf8) 17. Ne5 {[%emt 0:03:18]} Bxg2 {[%emt 0:11:12]} 18. Kxg2 {[%emt 0:00:00]} Qb7+ {[%emt 0:00:00]} 19. Qf3 {[%emt 0:00:22]} Qxf3+ {[%emt 0:00:00]} 20. Kxf3 {[%emt 0:00:00]} Rfc8 {[%emt 0:00:00]} 21. Rfd1 {[%emt 0:13:06]} Kf8 {[%emt 0:00:09]} 22. g4 {[%emt 0:04:47]} Ke8 {[%emt 0:01:04]} 23. b3 {[%emt 0:08:44]} Ng8 {[%emt 0:18:33]} 24. g5 {[%emt 0:11:13]} f6 {[%emt 0:02:30]} 25. gxf6 {[%emt 0:00:00]} gxf6 {[%emt 0:00:00]} 26. Rg1 $1 {[%emt 0:00:00]} Kf8 {[%emt 0:00:00]} 27. Ng4 {[%emt 0:00:38] [#] Strongly threatening Nh6.} e5 {[%emt 0:00:48]} 28. Nh6 {[%emt 0:00:05]} Nxh6 {[%emt 0:00:00]} 29. Bxh6+ {[%emt 0:00:00]} Kf7 {[%emt 0:00:00]} 30. Rdg4 {[%emt 0:17:09]} Ke6 {[%emt 0:00:00]} 31. Rg7 {[%emt 0:00:12]} Rh8 {[%emt 0:00:35] [#] ...Bf8 would now be deadly.} 32. Be3 {[%emt 0:03:54]} Rad8 {[%emt 0:00:03]} 33. Ke2 {[%emt 0:01:01]} h5 {[%emt 0:02:52]} 34. b4 {[%emt 0:09:42]} Rc8 {[%emt 0:03:57]} 35. Rc1 {[%emt 0:00:11]} Rc7 {[%emt 0:03:55]} 36. c5 {[%emt 0:01:10]} Rhc8 {[%emt 0:00:47]} 37. Rh7 {[%emt 0:00:30]} bxc5 {[%emt 0:00:20]} 38. bxc5 {[%emt 0:00:00]} (38. Rxh5 $2 {perishes.} cxb4 39. Kd1 Rxc1+ 40. Bxc1 Rg8 $19) 38... Rc6 {[%emt 0:06:35][%cal Re7c5]} 39. a4 {[%emt 0:07:38]} a5 {[%emt 0:00:00][%cal Re7c5]} (39... Bxc5 {simplifies} 40. Rxc5 Rxc5 41. Bxc5 Rxc5 42. Rxa7 Kf5) 40. Bd2 {[%emt 0:00:38]} Bxc5 {[%emt 0:03:24]} (40... Rxc5 $15 41. Rxc5 Rxc5 (41... Bxc5 42. Rxh5 Be7 43. Bxa5 $11) 42. Rxh5 Rc2) 41. Bxa5 $11 {[%emt 0:04:29]} Bd4 {[%emt 0:06:14]} 42. Rxc6+ {[%emt 0:01:53]} Rxc6 {[%emt 0:00:17]} 43. Be1 {[%emt 0:01:55]} Rc2+ {[%emt 0:00:06]} 44. Kf1 {[%emt 0:01:13]} Rc1 {[%emt 0:00:25] White must now prevent ...Bc3.} 45. Ke2 $1 {[%emt 0:00:16]} Rc2+ {[%emt 0:00:37]} 46. Kf1 $1 {[%emt 0:00:10]} Rc1 {[%emt 0:00:05] Weighted Error Value: White=0.06 (flawless) /Black=0.05 (flawless) .  Mistake:       	---       	Black=1      Inaccurate:     	White=3     	---        OK:         	White=13    	Black=20     Best:        	---       	Black=3      Strong:       	White=3     	---} 1/2-1/2